{"text_format":"3","workbook":"xlsx","n_sheets":2,"sheets":["01包采购清单","综合单价分析表"],"not_rendered":{"images":15,"external_links":1,"defined_names":3},"read":"whole","date_system":"1900"}

{"sheet":"01包采购清单","index":0,"n_rows":41,"n_cols":11,"rows_kept":41,"merged":[[0,0,0,10],[2,0,2,1],[13,0,13,3],[23,0,23,1],[25,0,25,1],[28,0,28,2],[36,0,36,1],[39,0,39,9],[40,0,40,10]]}
["稻香楼宾馆改造提升项目北辰苑石材采购清单（01包）"]
["序号","编号","名称","位置","规格参数","参考式样","参考图片","单位","工程量","单价\n（元）","合价\n（元）"]
["一、地面"]
[1,"ST-101","白玉兰大理石","接见厅、宴会厅","1、品质等级：A                                                                                                                                    \n2、尺寸：参照图纸\n3、厚度：地面湿贴，厚度17mm\n4、其他：供货石材为成品材料，板材颜色及纹理需一致 表面不能有非材料本身所带之斑点，刷≥1.5mm厚背胶(石材防水背胶+背网）、六面防护、石材结晶；含切割、修边、倒角等加工以及排版深化费用\n5、未尽事宜详见施工图纸、图集、答疑、比选文件、政府相关文件、规范等其他资料，满足设计与验收要求",null,{"$f":"_xlfn.DISPIMG(\"ID_3F1FC7D31C194E07AA78C27234F27C34\",1)","v":"=DISPIMG(\"ID_3F1FC7D31C194E07AA78C27234F27C34\",1)"},"㎡",169.29,null,{"$f":"J4*I4","v":{"v":0,"d":"0.00"}}]
[2,"ST-103","玛雅灰大理石","一层公区","1、品质等级：A                                                                                                                                    \n2、尺寸：参照图纸\n3、厚度：地面湿贴，厚度17mm\n4、其他：供货石材为成品材料，板材颜色及纹理需一致 表面不能有非材料本身所带之斑点，刷≥1.5mm厚背胶(石材防水背胶+背网）、六面防护、石材结晶；含切割、修边、倒角等加工以及排版深化费用\n5、未尽事宜详见施工图纸、图集、答疑、比选文件、政府相关文件、规范等其他资料，满足设计与验收要求",null,{"$f":"_xlfn.DISPIMG(\"ID_429DC557677D4B138410287F8136E337\",1)","v":"=DISPIMG(\"ID_429DC557677D4B138410287F8136E337\",1)"},"㎡",65.28,null,{"$f":"J5*I5","v":{"v":0,"d":"0.00"}}]
[3,"ST-103","玛雅灰大理石","接待台台面","1、品质等级：A                                                                                                                                    \n2、尺寸：参照图纸\n3、墙面干挂，厚度20mm\n4、其他：供货石材为成品材料，板材颜色及纹理需一致 表面不能有非材料本身所带之斑点，刷≥1.5mm厚背胶(石材防水背胶+背网）、六面防护、石材结晶；含切割、修边、倒角等加工以及排版深化费用\n5、未尽事宜详见施工图纸、图集、答疑、比选文件、政府相关文件、规范等其他资料，满足设计与验收要求",null,{"$f":"_xlfn.DISPIMG(\"ID_4BC14031B08A44639A0F15CF58D401D7\",1)","v":"=DISPIMG(\"ID_4BC14031B08A44639A0F15CF58D401D7\",1)"},"㎡",11.69,null,{"v":0,"d":"0.00"}]
[4,"ST-201","现代灰大理石","公区走廊","1、品质等级：A                                                                                                                                    \n2、尺寸：参照图纸\n3、厚度：地面湿贴，厚度17mm\n4、其他：供货石材为成品材料，板材颜色及纹理需一致 表面不能有非材料本身所带之斑点，刷≥1.5mm厚背胶(石材防水背胶+背网）、六面防护、石材结晶；含切割、修边、倒角等加工以及排版深化费用\n5、未尽事宜详见施工图纸、图集、答疑、比选文件、政府相关文件、规范等其他资料，满足设计与验收要求",null,{"$f":"_xlfn.DISPIMG(\"ID_7DC031028F554C03A0F85C06DFAD1D14\",1)","v":"=DISPIMG(\"ID_7DC031028F554C03A0F85C06DFAD1D14\",1)"},"㎡",334.62,null,{"v":0,"d":"0.00"}]
[5,"ST-201","现代灰大理石","公共卫生间","1、品质等级：A                                                                                                                                    \n2、尺寸：参照图纸\n3、厚度：地面湿贴，厚度17mm\n4、其他：供货石材为成品材料，板材颜色及纹理需一致 表面不能有非材料本身所带之斑点，刷≥1.5mm厚背胶(石材防水背胶+背网）、六面防护、石材结晶；含切割、修边、倒角等加工以及排版深化费用\n5、未尽事宜详见施工图纸、图集、答疑、比选文件、政府相关文件、规范等其他资料，满足设计与验收要求",null,{"$f":"_xlfn.DISPIMG(\"ID_C9930DE1A6784B31A00DEF05C65A3734\",1)","v":"=DISPIMG(\"ID_C9930DE1A6784B31A00DEF05C65A3734\",1)"},"㎡",60.53,null,{"v":0,"d":"0.00"}]
[6,"ST-201","现代灰大理石","客房地面","1、品质等级：A                                                                                                                                    \n2、尺寸：参照图纸\n3、厚度：地面湿贴，厚度17mm\n4、其他：供货石材为成品材料，板材颜色及纹理需一致 表面不能有非材料本身所带之斑点，刷≥1.5mm厚背胶(石材防水背胶+背网）、六面防护、石材结晶；含切割、修边、倒角等加工以及排版深化费用\n5、未尽事宜详见施工图纸、图集、答疑、比选文件、政府相关文件、规范等其他资料，满足设计与验收要求",null,"=DISPIMG(\"ID_7DC031028F554C03A0F85C06DFAD1D14\",1)","㎡",107.66,null,{"v":0,"d":"0.00"}]
[7,"ST-201","现代灰大理石","客房卫生间","1、品质等级：A                                                                                                                                    \n2、尺寸：参照图纸\n3、厚度：地面湿贴，厚度17mm\n4、其他：供货石材为成品材料，板材颜色及纹理需一致 表面不能有非材料本身所带之斑点，刷≥1.5mm厚背胶(石材防水背胶+背网）、六面防护、石材结晶；含切割、修边、倒角等加工以及排版深化费用\n5、未尽事宜详见施工图纸、图集、答疑、比选文件、政府相关文件、规范等其他资料，满足设计与验收要求",null,"=DISPIMG(\"ID_7DC031028F554C03A0F85C06DFAD1D14\",1)","㎡",148.44,null,{"v":0,"d":"0.00"}]
[8,"ST-201","现代灰大理石","客房淋浴间","1、品质等级：A                                                                                                                                    \n2、尺寸：参照图纸\n3、厚度：地面湿贴，厚度17mm\n4、其他：供货石材为成品材料，板材颜色及纹理需一致 表面不能有非材料本身所带之斑点，刷≥1.5mm厚背胶(石材防水背胶+背网）、六面防护、石材结晶；含切割、修边、倒角等加工以及排版深化费用\n5、未尽事宜详见施工图纸、图集、答疑、比选文件、政府相关文件、规范等其他资料，满足设计与验收要求","拉槽板",null,"㎡",45.92,null,{"v":0,"d":"0.00"}]
[9,"ST-204","莎安娜米黄大理石","总套","1、品质等级：A                                                                                                                                    \n2、尺寸：参照图纸\n3、厚度：地面湿贴，厚度17mm\n4、其他：供货石材为成品材料，板材颜色及纹理需一致 表面不能有非材料本身所带之斑点，刷≥1.5mm厚背胶(石材防水背胶+背网）、六面防护、石材结晶；含切割、修边、倒角等加工以及排版深化费用\n5、未尽事宜详见施工图纸、图集、答疑、比选文件、政府相关文件、规范等其他资料，满足设计与验收要求",null,{"$f":"_xlfn.DISPIMG(\"ID_072D2A6393ED461B9A3BD18FD044E12C\",1)","v":"=DISPIMG(\"ID_072D2A6393ED461B9A3BD18FD044E12C\",1)"},"㎡",119.34,null,{"v":0,"d":"0.00"}]
[10,"ST-204","莎安娜米黄大理石","总套卫生间洗手台台面","1、品质等级：A                                                                                                                                    \n2、尺寸：参照图纸\n3、厚度：20mm\n4、其他：供货石材为成品材料，板材颜色及纹理需一致 表面不能有非材料本身所带之斑点，刷≥1.5mm厚背胶(石材防水背胶+背网）、六面防护、石材结晶；含切割、修边、倒角等加工以及排版深化费用\n5、未尽事宜详见施工图纸、图集、答疑、比选文件、政府相关文件、规范等其他资料，满足设计与验收要求",null,null,"㎡",{"v":5.9,"d":"5.90"},null,{"v":0,"d":"0.00"}]
["二、地面线条、门槛石"]
[11,"ST-101门槛石","白玉兰大理石","客房房间","1、品质等级：A                                                                                                                                    \n2、尺寸：参照图纸\n3、厚度17mm\n4、其他：供货石材为成品材料，板材颜色及纹理需一致 表面不能有非材料本身所带之斑点，刷≥1.5mm厚背胶(石材防水背胶+背网）、六面防护、石材结晶；含切割、修边、倒角等加工以及排版深化费用\n5、未尽事宜详见施工图纸、图集、答疑、比选文件、政府相关文件、规范等其他资料，满足设计与验收要求",null,{"$f":"_xlfn.DISPIMG(\"ID_3F1FC7D31C194E07AA78C27234F27C34\",1)","v":"=DISPIMG(\"ID_3F1FC7D31C194E07AA78C27234F27C34\",1)"},"㎡",7.57,null,{"$f":"J15*I15","v":{"v":0,"d":"0.00"}}]
[12,"ST-101门槛石","白玉兰大理石","功能房间及后勤","1、品质等级：A                                                                                                                                    \n2、尺寸：参照图纸\n3、厚度17mm\n4、其他：供货石材为成品材料，板材颜色及纹理需一致 表面不能有非材料本身所带之斑点，刷≥1.5mm厚背胶(石材防水背胶+背网）、六面防护、石材结晶；含切割、修边、倒角等加工以及排版深化费用\n5、未尽事宜详见施工图纸、图集、答疑、比选文件、政府相关文件、规范等其他资料，满足设计与验收要求",null,{"$f":"_xlfn.DISPIMG(\"ID_3F1FC7D31C194E07AA78C27234F27C34\",1)","v":"=DISPIMG(\"ID_3F1FC7D31C194E07AA78C27234F27C34\",1)"},"㎡",28.48,null,{"$f":"J16*I16","v":{"v":0,"d":"0.00"}}]
[13,"ST-102线条","啡慕斯大理石","走道、电梯厅","1、品质等级：A                                                                                                                                    \n宽度：20mm\n3、厚度17mm\n4、其他：供货石材为成品材料，板材颜色及纹理需一致 表面不能有非材料本身所带之斑点，刷≥1.5mm厚背胶(石材防水背胶+背网）、六面防护、石材结晶；含切割、修边、倒角等加工以及排版深化费用\n5、未尽事宜详见施工图纸、图集、答疑、比选文件、政府相关文件、规范等其他资料，满足设计与验收要求",null,{"$f":"_xlfn.DISPIMG(\"ID_AD392A49432B4507BAF0EA4672D454B6\",1)","v":"=DISPIMG(\"ID_AD392A49432B4507BAF0EA4672D454B6\",1)"},"m",340.47,null,{"v":0,"d":"0.00"}]
[14,"ST-102线条","啡慕斯大理石","总套","1、品质等级：A                                                                                                                                    \n宽度：20mm\n3、厚度17mm\n4、其他：供货石材为成品材料，板材颜色及纹理需一致 表面不能有非材料本身所带之斑点，刷≥1.5mm厚背胶(石材防水背胶+背网）、六面防护、石材结晶；含切割、修边、倒角等加工以及排版深化费用\n5、未尽事宜详见施工图纸、图集、答疑、比选文件、政府相关文件、规范等其他资料，满足设计与验收要求",null,{"$f":"_xlfn.DISPIMG(\"ID_AD392A49432B4507BAF0EA4672D454B6\",1)","v":"=DISPIMG(\"ID_AD392A49432B4507BAF0EA4672D454B6\",1)"},"m",243.37,null,{"v":0,"d":"0.00"}]
[15,"ST-103线条","玛雅灰大理石","走道、电梯厅","1、品质等级：A                                                                                                                                    \n宽度：20mm\n3、厚度17mm\n4、其他：供货石材为成品材料，板材颜色及纹理需一致 表面不能有非材料本身所带之斑点，刷≥1.5mm厚背胶(石材防水背胶+背网）、六面防护、石材结晶；含切割、修边、倒角等加工以及排版深化费用\n5、未尽事宜详见施工图纸、图集、答疑、比选文件、政府相关文件、规范等其他资料，满足设计与验收要求",null,{"$f":"_xlfn.DISPIMG(\"ID_429DC557677D4B138410287F8136E337\",1)","v":"=DISPIMG(\"ID_429DC557677D4B138410287F8136E337\",1)"},"m",1072.92,null,{"v":0,"d":"0.00"}]
[16,"ST-103线条","玛雅灰大理石","总套","1、品质等级：A                                                                                                                                    \n宽度：40mm\n3、厚度17mm\n4、其他：供货石材为成品材料，板材颜色及纹理需一致 表面不能有非材料本身所带之斑点，刷≥1.5mm厚背胶(石材防水背胶+背网）、六面防护、石材结晶；含切割、修边、倒角等加工以及排版深化费用\n5、未尽事宜详见施工图纸、图集、答疑、比选文件、政府相关文件、规范等其他资料，满足设计与验收要求",null,{"$f":"_xlfn.DISPIMG(\"ID_429DC557677D4B138410287F8136E337\",1)","v":"=DISPIMG(\"ID_429DC557677D4B138410287F8136E337\",1)"},"m",24.09,null,{"v":0,"d":"0.00"}]
[17,"ST-103线条","玛雅灰大理石","总套","1、品质等级：A                                                                                                                                    \n宽度：100mm\n3、厚度17mm\n4、其他：供货石材为成品材料，板材颜色及纹理需一致 表面不能有非材料本身所带之斑点，刷≥1.5mm厚背胶(石材防水背胶+背网）、六面防护、石材结晶；含切割、修边、倒角等加工以及排版深化费用\n5、未尽事宜详见施工图纸、图集、答疑、比选文件、政府相关文件、规范等其他资料，满足设计与验收要求",null,{"$f":"_xlfn.DISPIMG(\"ID_429DC557677D4B138410287F8136E337\",1)","v":"=DISPIMG(\"ID_429DC557677D4B138410287F8136E337\",1)"},"m",103.61,null,{"v":0,"d":"0.00"}]
[18,"ST-201门槛石","现代灰大理石","客房房间","1、品质等级：A                                                                                                                                    \n2、尺寸：参照图纸\n3、厚度17mm\n4、其他：供货石材为成品材料，板材颜色及纹理需一致 表面不能有非材料本身所带之斑点，刷≥1.5mm厚背胶(石材防水背胶+背网）、六面防护、石材结晶；含切割、修边、倒角等加工以及排版深化费用\n5、未尽事宜详见施工图纸、图集、答疑、比选文件、政府相关文件、规范等其他资料，满足设计与验收要求",null,{"$f":"_xlfn.DISPIMG(\"ID_7DC031028F554C03A0F85C06DFAD1D14\",1)","v":"=DISPIMG(\"ID_7DC031028F554C03A0F85C06DFAD1D14\",1)"},"㎡",12.61,null,{"v":0,"d":"0.00"}]
[19,"ST-202挡水埂","现代灰大理石","客房","1、品质等级：A                                                                                                                                    \n宽度：100mm\n3、厚度45mm\n4、其他：供货石材为成品材料，板材颜色及纹理需一致 表面不能有非材料本身所带之斑点，刷≥1.5mm厚背胶(石材防水背胶+背网）、六面防护、石材结晶；含切割、修边、倒角等加工以及排版深化费用\n5、未尽事宜详见施工图纸、图集、答疑、比选文件、政府相关文件、规范等其他资料，满足设计与验收要求",{"$f":"_xlfn.DISPIMG(\"ID_19D0390EF19E4AA5A375EFA383FC55BB\",1)","v":"=DISPIMG(\"ID_19D0390EF19E4AA5A375EFA383FC55BB\",1)"},{"$f":"_xlfn.DISPIMG(\"ID_8D54E419D30A47729FF05F46C28091EC\",1)","v":"=DISPIMG(\"ID_8D54E419D30A47729FF05F46C28091EC\",1)"},"m",41.08,null,{"v":0,"d":"0.00"}]
["三、踢脚线"]
[20,"ST-201","现代灰大理石","值班室","1、品质等级：A                                                                                                                                    \n2、尺寸：参照图纸\n3、高度：100mm\n4、其他：供货石材为成品材料，板材颜色及纹理需一致 表面不能有非材料本身所带之斑点，刷≥1.5mm厚背胶(石材防水背胶+背网）、六面防护、石材结晶；含切割、修边、倒角等加工以及排版深化费用\n5、未尽事宜详见施工图纸、图集、答疑、比选文件、政府相关文件、规范等其他资料，满足设计与验收要求",null,{"$f":"_xlfn.DISPIMG(\"ID_7DC031028F554C03A0F85C06DFAD1D14\",1)","v":"=DISPIMG(\"ID_7DC031028F554C03A0F85C06DFAD1D14\",1)"},"m",{"v":25.1,"d":"25.10"},null,{"$f":"J25*I25","v":{"v":0,"d":"0.00"}}]
["四、墙面"]
[21,"ST-105","雪花白大理石（细纹）","中庭挑空区背景墙","1、品质等级：A                                                                                                                                    \n2、尺寸：参照图纸\n3、墙面干挂，厚度25mm   \n4、其他：供货石材为成品材料，板材颜色及纹理需一致 表面不能有非材料本身所带之斑点，刷≥1.5mm厚背胶(石材防水背胶+背网）、六面防护、石材结晶；含切割、修边、倒角等加工以及排版深化费用\n5、未尽事宜详见施工图纸、图集、答疑、比选文件、政府相关文件、规范等其他资料，满足设计与验收要求",null,null,"㎡",60.71,null,{"$f":"J27*I27","v":{"v":0,"d":"0.00"}}]
[22,"ST-106","鱼肚金大理石","大堂接待背景墙","1、品质等级：A                                                                                                                                    \n2、尺寸：参照图纸\n3、墙面干挂，厚度25mm   \n4、其他：供货石材为成品材料，板材颜色及纹理需一致 表面不能有非材料本身所带之斑点，刷≥1.5mm厚背胶(石材防水背胶+背网）、六面防护、石材结晶；含切割、修边、倒角等加工以及排版深化费用\n5、未尽事宜详见施工图纸、图集、答疑、比选文件、政府相关文件、规范等其他资料，满足设计与验收要求",null,null,"㎡",23.89,null,{"$f":"J28*I28","v":{"v":0,"d":"0.00"}}]
["五、地暖区域",{"$nulls":9},{"v":0,"d":"0.00"}]
[23,"ST-101","白玉兰大理石","大厅、电梯厅、中庭地面","1、品质等级：A                                                                                                                                    \n2、尺寸：参照图纸\n3、厚度：地面湿贴，厚度17mm\n4、满足图纸及相关要求\n5、其他：供货石材为成品材料，板材颜色及纹理需一致 表面不能有非材料本身所带之斑点，刷≥1.5mm厚背胶(石材防水背胶+背网）、六面防护、石材结晶；含切割、修边、倒角等加工以及排版深化费用\n6、未尽事宜详见施工图纸、图集、答疑、比选文件、政府相关文件、规范等其他资料，满足设计与验收要求",null,{"$f":"_xlfn.DISPIMG(\"ID_3F1FC7D31C194E07AA78C27234F27C34\",1)","v":"=DISPIMG(\"ID_3F1FC7D31C194E07AA78C27234F27C34\",1)"},"㎡",{"$f":"88.98+148.6+20.01+452.11","v":{"v":709.7,"d":"709.70"}},null,{"v":0,"d":"0.00"}]
[24,"ST-103","玛雅灰大理石","大厅、电梯厅地面浅色波打线","1、品质等级：A                                                                                                                                    \n2、尺寸：参照图纸\n3、厚度：地面湿贴，厚度17mm\n4、满足图纸及相关要求\n5、其他：供货石材为成品材料，板材颜色及纹理需一致 表面不能有非材料本身所带之斑点，刷≥1.5mm厚背胶(石材防水背胶+背网）、六面防护、石材结晶；含切割、修边、倒角等加工以及排版深化费用\n6、未尽事宜详见施工图纸、图集、答疑、比选文件、政府相关文件、规范等其他资料，满足设计与验收要求",null,{"$f":"_xlfn.DISPIMG(\"ID_4BC14031B08A44639A0F15CF58D401D7\",1)","v":"=DISPIMG(\"ID_4BC14031B08A44639A0F15CF58D401D7\",1)"},"㎡",{"$f":"4.45+57.29","v":61.74},null,{"v":0,"d":"0.00"}]
[25,null,"拼花石材","中庭","1、种类、品质等级：白玉兰大理石/啡慕斯/玛雅灰，A                                                                                                                                    \n2、尺寸：参照图纸，参考业主选样\n3、厚度：地面湿贴，厚度17mmmm\n4、满足图纸及相关要求\n5、其他：供货石材为成品材料，板材颜色及纹理需一致 表面不能有非材料本身所带之斑点，刷≥1.5mm厚背胶(石材防水背胶+背网）、六面防护、石材结晶；含切割、修边、倒角等加工以及排版深化费用\n6、未尽事宜详见施工图纸、图集、答疑、比选文件、政府相关文件、规范等其他资料，满足设计与验收要求",null,{"$f":"_xlfn.DISPIMG(\"ID_0EADEFF0931C4B2C900640BCCB0DAF9A\",1)","v":"=DISPIMG(\"ID_0EADEFF0931C4B2C900640BCCB0DAF9A\",1)"},"㎡",{"v":18.1,"d":"18.10"},null,{"v":0,"d":"0.00"}]
[26,null,"拼花石材","门厅","1、种类、品质等级：白玉兰大理石/啡慕斯/玛雅灰，A                                                                                                                                    \n2、尺寸：参照图纸，参考业主选样\n3、厚度：地面湿贴，厚度17mmmm\n4、满足图纸及相关要求\n5、其他：供货石材为成品材料，板材颜色及纹理需一致 表面不能有非材料本身所带之斑点，刷≥1.5mm厚背胶(石材防水背胶+背网）、六面防护、石材结晶；含切割、修边、倒角等加工以及排版深化费用\n6、未尽事宜详见施工图纸、图集、答疑、比选文件、政府相关文件、规范等其他资料，满足设计与验收要求",null,{"$f":"_xlfn.DISPIMG(\"ID_019DB69A575D4D68B645ADBAD4ECCB5A\",1)","v":"=DISPIMG(\"ID_019DB69A575D4D68B645ADBAD4ECCB5A\",1)"},"㎡",111.33,null,{"v":0,"d":"0.00"}]
[27,"ST-102线条","啡慕斯大理石","走道、电梯厅、中庭","1、品质等级：A                                                                                                                                    \n宽度：20mm\n3、厚度17mm\n4、满足图纸及相关要求\n5、其他：供货石材为成品材料，板材颜色及纹理需一致 表面不能有非材料本身所带之斑点，刷≥1.5mm厚背胶(石材防水背胶+背网）、六面防护、石材结晶；含切割、修边、倒角等加工以及排版深化费用\n6、未尽事宜详见施工图纸、图集、答疑、比选文件、政府相关文件、规范等其他资料，满足设计与验收要求",null,{"$f":"_xlfn.DISPIMG(\"ID_AD392A49432B4507BAF0EA4672D454B6\",1)","v":"=DISPIMG(\"ID_AD392A49432B4507BAF0EA4672D454B6\",1)"},"m",{"$f":"64.72+21.36+254.39","v":340.47},null,{"v":0,"d":"0.00"}]
[28,"ST-102线条","啡慕斯大理石","走道、电梯厅、中庭","1、品质等级：A                                                                                                                                    \n宽度：50mm\n3、厚度17mm\n4、满足图纸及相关要求\n5、其他：供货石材为成品材料，板材颜色及纹理需一致 表面不能有非材料本身所带之斑点，刷≥1.5mm厚背胶(石材防水背胶+背网）、六面防护、石材结晶；含切割、修边、倒角等加工以及排版深化费用\n6、未尽事宜详见施工图纸、图集、答疑、比选文件、政府相关文件、规范等其他资料，满足设计与验收要求",null,"=DISPIMG(\"ID_AD392A49432B4507BAF0EA4672D454B6\",1)","m",370.99,null,{"v":0,"d":"0.00"}]
[29,"ST-102线条","啡慕斯大理石","门厅、中庭","1、品质等级：A                                                                                                                                    \n宽度：100mm\n3、厚度17mm\n4、满足图纸及相关要求\n5、其他：供货石材为成品材料，板材颜色及纹理需一致 表面不能有非材料本身所带之斑点，刷≥1.5mm厚背胶(石材防水背胶+背网）、六面防护、石材结晶；含切割、修边、倒角等加工以及排版深化费用\n6、未尽事宜详见施工图纸、图集、答疑、比选文件、政府相关文件、规范等其他资料，满足设计与验收要求",null,"=DISPIMG(\"ID_AD392A49432B4507BAF0EA4672D454B6\",1)","m",127.48,null,{"v":0,"d":"0.00"}]
["六、窗台板"]
[30,"ST-201","现代灰大理石","客房","1、品质等级：A                                                                                                                                    \n2、尺寸：参照图纸\n3、厚度20mm   \n4、其他：供货石材为成品材料，板材颜色及纹理需一致 表面不能有非材料本身所带之斑点，刷≥1.5mm厚背胶(石材防水背胶+背网）、六面防护、石材结晶；含切割、修边、倒角等加工以及排版深化费用\n5、未尽事宜详见施工图纸、图集、答疑、比选文件、政府相关文件、规范等其他资料，满足设计与验收要求",null,{"$f":"_xlfn.DISPIMG(\"ID_7DC031028F554C03A0F85C06DFAD1D14\",1)","v":"=DISPIMG(\"ID_7DC031028F554C03A0F85C06DFAD1D14\",1)"},"㎡",10.73,null,{"$f":"J38*I38","v":{"v":0,"d":"0.00"}}]
[31,"ST-204","莎安娜米黄大理石","总套","1、品质等级：A                                                                                                                                    \n2、尺寸：参照图纸\n3、厚度20mm   \n4、其他：供货石材为成品材料，板材颜色及纹理需一致 表面不能有非材料本身所带之斑点，刷≥1.5mm厚背胶(石材防水背胶+背网）、六面防护、石材结晶；含切割、修边、倒角等加工以及排版深化费用\n5、未尽事宜详见施工图纸、图集、答疑、比选文件、政府相关文件、规范等其他资料，满足设计与验收要求",null,{"$f":"_xlfn.DISPIMG(\"ID_89566E466EBD44BBBB138972F578828B\",1)","v":"=DISPIMG(\"ID_89566E466EBD44BBBB138972F578828B\",1)"},"㎡",4.98,null,{"$f":"J39*I39","v":{"v":0,"d":"0.00"}}]
["总价（元）",{"$nulls":9},{"$f":"SUM(K4:K39)","v":{"v":0,"d":"0.00"}}]
["备注：\n1、石材供应商仅供货，不安装\n2、须完善综合单价分析表"]

{"sheet":"综合单价分析表","index":1,"n_rows":23,"n_cols":17,"rows_kept":23,"merged":[[19,3,19,4],[19,12,19,13],[20,3,20,4],[20,12,20,13],[21,3,21,4],[21,12,21,13],[22,3,22,5],[22,12,22,14]]}
["序号","工作内容","单位","数量","损耗","单价(元）","合价（元）","备注",null,"序号","工作内容","单位","数量","损耗","单价(元）","合价（元）","备注"]
["一","人工费",{"$nulls":4},{"$f":"G3+G4","v":0},null,null,"一","人工费",{"$nulls":4},{"$f":"P3+P4","v":0}]
[1,{"$nulls":8},1]
[2,{"$nulls":8},2]
["二","材料费",{"$nulls":7},"二","材料费"]
[1,{"$nulls":8},1,"面材"]
[1.1,{"$nulls":8},1.1]
[1.2,{"$nulls":8},1.2]
[]
["三","其他材料",{"$nulls":7},6,"其他材料"]
[6.1,{"$nulls":8},6.1]
[6.2,{"$nulls":8},6.2]
[6.3,{"$nulls":8},6.3]
[6.4,{"$nulls":8},6.4]
[6.5,{"$nulls":8},6.5]
[6.6,{"$nulls":8},6.6]
[]
["三","机械费",{"$nulls":7},"三","机械费"]
["四","综合取费",{"$nulls":7},"四","综合取费"]
[1,"管理费",{"$nulls":7},1,"管理费"]
[2,"利润",{"$nulls":7},2,"利润"]
["五","税金",{"$nulls":7},"五","税金"]
["六","综合单价",{"$nulls":7},"六","综合单价"]